[Event "*** SCC Grand Prix: Titled Tuesday Blitz"]
[Site "Chess.com"]
[Date "2020.10.13"]
[Round "4"]
[White "Alexander_Moskalenko"]
[Black "elcandado"]
[Result "1-0"]
[WhiteElo "2816"]
[BlackElo "2568"]
[TimeControl "180+1"]
[EndTime "10:38:51 PDT"]
[Termination "Alexander_Moskalenko won on time"]

1. d4 {[%clk 0:02:42.3]} 1... Nf6 {[%clk 0:02:59.1]} 2. c4 {[%clk 0:02:41.4]}
2... e6 {[%clk 0:02:59.2]} 3. g3 {[%clk 0:02:40.9]} 3... d5 {[%clk 0:02:58.8]}
4. Bg2 {[%clk 0:02:40.8]} 4... Be7 {[%clk 0:02:59.1]} 5. Nf3 {[%clk 0:02:41.4]}
5... O-O {[%clk 0:02:59.4]} 6. Nc3 {[%clk 0:02:42.3]} 6... dxc4 {[%clk
0:02:53.8]} 7. Ne5 {[%clk 0:02:41.4]} 7... Nc6 {[%clk 0:02:45.8]} 8. Bxc6 {[%clk
0:02:40]} 8... bxc6 {[%clk 0:02:45.7]} 9. Nxc6 {[%clk 0:02:40.9]} 9... Qe8
{[%clk 0:02:45.4]} 10. Nxe7+ {[%clk 0:02:39.8]} 10... Qxe7 {[%clk 0:02:46.3]}
11. Qa4 {[%clk 0:02:39.8]} 11... e5 {[%clk 0:02:20.5]} 12. dxe5 {[%clk
0:02:35.5]} 12... Qxe5 {[%clk 0:02:19.8]} 13. Qxc4 {[%clk 0:02:35.3]} 13... Bh3
{[%clk 0:02:11]} 14. Bf4 {[%clk 0:02:32.3]} 14... Qf5 {[%clk 0:02:06.3]} 15. f3
{[%clk 0:02:30.7]} 15... Rfe8 {[%clk 0:01:57.8]} 16. O-O-O {[%clk 0:02:21.3]}
16... Qa5 {[%clk 0:01:40.6]} 17. Rd2 {[%clk 0:02:07.5]} 17... Be6 {[%clk
0:01:38]} 18. Qxc7 {[%clk 0:02:06.9]} 18... Qf5 {[%clk 0:01:04.5]} 19. e4 {[%clk
0:02:04.1]} 19... Qh5 {[%clk 0:01:01.7]} 20. Qe5 {[%clk 0:02:02.5]} 20... Qxf3
{[%clk 0:01:00.2]} 21. Re1 {[%clk 0:01:59.5]} 21... Bxa2 {[%clk 0:00:57.1]} 22.
Qd4 {[%clk 0:01:57.1]} 22... Rac8 {[%clk 0:00:51]} 23. e5 {[%clk 0:01:57.2]}
23... Nd5 {[%clk 0:00:48.2]} 24. Rd3 {[%clk 0:01:56.3]} 24... Qg2 {[%clk
0:00:45.8]} 25. Qe4 {[%clk 0:01:51.1]} 25... Qxe4 {[%clk 0:00:32.4]} 26. Rxe4
{[%clk 0:01:52]} 26... Nxc3 {[%clk 0:00:32]} 27. Rxc3 {[%clk 0:01:52.9]} 27...
Be6 {[%clk 0:00:28.2]} 28. Ra4 {[%clk 0:01:52.5]} 28... Rxc3+ {[%clk 0:00:25.6]}
29. bxc3 {[%clk 0:01:53.4]} 29... Re7 {[%clk 0:00:22.6]} 30. Be3 {[%clk
0:01:52.9]} 30... Rc7 {[%clk 0:00:19.9]} 31. Kd2 {[%clk 0:01:52]} 31... Bd7
{[%clk 0:00:20.2]} 32. Ra5 {[%clk 0:01:51.3]} 32... Kf8 {[%clk 0:00:18.9]} 33.
Bxa7 {[%clk 0:01:51.4]} 33... Ke8 {[%clk 0:00:18.3]} 34. Bd4 {[%clk 0:01:50]}
34... Ke7 {[%clk 0:00:17.3]} 35. e6 {[%clk 0:01:48.8]} 35... Bxe6 {[%clk
0:00:16]} 36. Bxg7 {[%clk 0:01:49.4]} 36... Rc4 {[%clk 0:00:15.5]} 37. Bd4
{[%clk 0:01:49.1]} 37... Kd7 {[%clk 0:00:15.1]} 38. Ke3 {[%clk 0:01:48.6]} 38...
Kc6 {[%clk 0:00:15.2]} 39. Kf4 {[%clk 0:01:48.7]} 39... Kd7 {[%clk 0:00:12.7]}
40. Kg5 {[%clk 0:01:49]} 40... Rc6 {[%clk 0:00:06.6]} 41. Ra7+ {[%clk
0:01:44.4]} 41... Ke8 {[%clk 0:00:05.9]} 42. Bf6 {[%clk 0:01:37.2]} 42... Bc8
{[%clk 0:00:05.5]} 43. Be5 {[%clk 0:01:19.5]} 43... Rc5 {[%clk 0:00:03.9]} 44.
Kf6 {[%clk 0:01:18.6]} 44... Rc6+ {[%clk 0:00:04]} 45. Kg7 {[%clk 0:01:18.9]}
45... h5 {[%clk 0:00:03.9]} 46. Bf6 {[%clk 0:01:16.8]} 46... Be6 {[%clk
0:00:01.7]} 47. Re7+ {[%clk 0:01:16.8]} 1-0

[Event "*** SCC Grand Prix: Titled Tuesday Blitz"]
[Site "Chess.com"]
[Date "2020.10.13"]
[Round "4"]
[White "anon569"]
[Black "Lucas_Tomiello"]
[Result "0-1"]
[WhiteElo "2258"]
[BlackElo "2428"]
[TimeControl "180+1"]
[EndTime "10:38:52 PDT"]
[Termination "Lucas_Tomiello won on time"]

1. e4 {[%clk 0:03:00.6]} 1... c5 {[%clk 0:03:00.3]} 2. Nf3 {[%clk 0:03:00.5]}
2... d6 {[%clk 0:03:00.9]} 3. d4 {[%clk 0:03:01]} 3... cxd4 {[%clk 0:03:01.8]}
4. Nxd4 {[%clk 0:03:01.4]} 4... Nf6 {[%clk 0:03:02.5]} 5. Nc3 {[%clk 0:03:01.9]}
5... a6 {[%clk 0:03:03]} 6. Bg5 {[%clk 0:03:02.2]} 6... Nbd7 {[%clk 0:03:03.1]}
7. f4 {[%clk 0:03:02.4]} 7... Qc7 {[%clk 0:03:03.2]} 8. Qf3 {[%clk 0:03:02.6]}
8... b5 {[%clk 0:03:03.5]} 9. a3 {[%clk 0:02:58.7]} 9... Bb7 {[%clk 0:03:02.7]}
10. O-O-O {[%clk 0:02:58.6]} 10... h6 {[%clk 0:02:56]} 11. Bh4 {[%clk 0:02:54]}
11... Rc8 {[%clk 0:02:52.5]} 12. Bd3 {[%clk 0:02:37.2]} 12... e6 {[%clk
0:02:52.2]} 13. Rhe1 {[%clk 0:02:31.5]} 13... Be7 {[%clk 0:02:52.1]} 14. Kb1
{[%clk 0:02:11.9]} 14... O-O {[%clk 0:02:50.1]} 15. Bf2 {[%clk 0:02:04.2]} 15...
Nb6 {[%clk 0:02:44.3]} 16. g4 {[%clk 0:02:00.9]} 16... Nfd7 {[%clk 0:02:40.9]}
17. h4 {[%clk 0:01:55.8]} 17... d5 {[%clk 0:02:17.5]} 18. e5 {[%clk 0:01:49.6]}
18... b4 {[%clk 0:02:17.2]} 19. Na2 {[%clk 0:01:35.1]} 19... bxa3 {[%clk
0:02:16.6]} 20. b3 {[%clk 0:01:33.6]} 20... Nc5 {[%clk 0:02:03.8]} 21. Rc1
{[%clk 0:01:20.5]} 21... Ne4 {[%clk 0:02:01.8]} 22. Bxe4 {[%clk 0:01:17.3]}
22... dxe4 {[%clk 0:02:02.7]} 23. Qg3 {[%clk 0:01:08]} 23... Rfd8 {[%clk
0:01:53.3]} 24. g5 {[%clk 0:00:54.3]} 24... hxg5 {[%clk 0:01:53.4]} 25. hxg5
{[%clk 0:00:52.9]} 25... Bc5 {[%clk 0:01:52.8]} 26. c3 {[%clk 0:00:18.6]} 26...
g6 {[%clk 0:01:48.7]} 27. Qh3 {[%clk 0:00:15.9]} 27... e3 {[%clk 0:01:41]} 28.
Bxe3 {[%clk 0:00:15.1]} 28... Bf8 {[%clk 0:01:14.5]} 29. Rh1 {[%clk 0:00:12]}
29... Bxh1 {[%clk 0:01:13.8]} 30. Rxh1 {[%clk 0:00:10.1]} 30... Bg7 {[%clk
0:01:14.1]} 31. Qh7+ {[%clk 0:00:08.4]} 31... Kf8 {[%clk 0:01:14.1]} 32. Rf1
{[%clk 0:00:06]} 32... Nd5 {[%clk 0:01:12.5]} 33. Bd2 {[%clk 0:00:05.5]} 33...
Ne7 {[%clk 0:01:05.5]} 34. Qh2 {[%clk 0:00:02]} 34... Rxd4 {[%clk 0:01:00.7]}
0-1

[Event "*** SCC Grand Prix: Titled Tuesday Blitz"]
[Site "Chess.com"]
[Date "2020.10.13"]
[Round "4"]
[White "djano"]
[Black "ShcufNaiRolf"]
[Result "1/2-1/2"]
[WhiteElo "2453"]
[BlackElo "2314"]
[TimeControl "180+1"]
[EndTime "10:38:53 PDT"]
[Termination "Game drawn by repetition"]

1. d4 {[%clk 0:03:00.9]} 1... d5 {[%clk 0:02:59]} 2. Nf3 {[%clk 0:03:00.6]} 2...
Nf6 {[%clk 0:02:58]} 3. Bf4 {[%clk 0:03:00.5]} 3... c5 {[%clk 0:02:56.4]} 4. e3
{[%clk 0:02:59.8]} 4... Nc6 {[%clk 0:02:48]} 5. Nbd2 {[%clk 0:02:59.6]} 5... Bf5
{[%clk 0:02:41.4]} 6. dxc5 {[%clk 0:02:49.9]} 6... e6 {[%clk 0:02:34.5]} 7. Nd4
{[%clk 0:02:49.2]} 7... Bxc5 {[%clk 0:02:29.4]} 8. Nxf5 {[%clk 0:02:42.4]} 8...
exf5 {[%clk 0:02:29.2]} 9. c3 {[%clk 0:02:40.9]} 9... O-O {[%clk 0:02:25.5]} 10.
Bd3 {[%clk 0:02:39.9]} 10... Ne4 {[%clk 0:02:23.2]} 11. Nb3 {[%clk 0:02:10.7]}
11... Bd6 {[%clk 0:02:03.5]} 12. Qf3 {[%clk 0:02:04.4]} 12... g6 {[%clk
0:01:58]} 13. O-O-O {[%clk 0:02:00.6]} 13... a5 {[%clk 0:01:45]} 14. Kb1 {[%clk
0:01:50]} 14... a4 {[%clk 0:01:44.8]} 15. Nd4 {[%clk 0:01:47.2]} 15... a3 {[%clk
0:01:45.2]} 16. Bxe4 {[%clk 0:01:14.3]} 16... fxe4 {[%clk 0:01:22.4]} 17. Qg3
{[%clk 0:01:14.2]} 17... Bxf4 {[%clk 0:01:21]} 18. Qxf4 {[%clk 0:01:14.4]} 18...
axb2 {[%clk 0:01:21.3]} 19. Nb3 {[%clk 0:01:06.6]} 19... Qb6 {[%clk 0:01:08]}
20. Rd2 {[%clk 0:01:03.7]} 20... Qa6 {[%clk 0:01:00.1]} 21. Rxb2 {[%clk
0:00:57.3]} 21... Qd3+ {[%clk 0:01:00]} 22. Ka1 {[%clk 0:00:54]} 22... Rxa2+
{[%clk 0:00:31]} 23. Rxa2 {[%clk 0:00:48]} 23... Qxc3+ {[%clk 0:00:30.5]} 24.
Rb2 {[%clk 0:00:39.6]} 24... Ra8+ {[%clk 0:00:29.8]} 25. Kb1 {[%clk 0:00:39.9]}
25... Qd3+ {[%clk 0:00:29.4]} 26. Kc1 {[%clk 0:00:37.1]} 26... Nb4 {[%clk
0:00:27.4]} 27. Qc7 {[%clk 0:00:25.4]} 27... Na2+ {[%clk 0:00:21.7]} 28. Rxa2
{[%clk 0:00:25.4]} 28... Rxa2 {[%clk 0:00:22.6]} 29. Qb8+ {[%clk 0:00:25]} 29...
Kg7 {[%clk 0:00:21.6]} 30. Qe5+ {[%clk 0:00:25]} 30... Kg8 {[%clk 0:00:18.3]}
31. Qb8+ {[%clk 0:00:24.9]} 31... Kg7 {[%clk 0:00:18.3]} 32. Qe5+ {[%clk
0:00:25.5]} 32... Kg8 {[%clk 0:00:16.6]} 33. Qb8+ {[%clk 0:00:25.5]} 1/2-1/2

[Event "*** SCC Grand Prix: Titled Tuesday Blitz"]
[Site "Chess.com"]
[Date "2020.10.13"]
[Round "4"]
[White "Beltraxtor"]
[Black "anon102030"]
[Result "0-1"]
[WhiteElo "2551"]
[BlackElo "2730"]
[TimeControl "180+1"]
[EndTime "10:38:55 PDT"]
[Termination "anon102030 won on time"]

1. e4 {[%clk 0:03:00.5]} 1... e5 {[%clk 0:03:00.4]} 2. Nf3 {[%clk 0:03:00.5]}
2... Nc6 {[%clk 0:03:00.8]} 3. Bb5 {[%clk 0:03:01]} 3... Nge7 {[%clk 0:03:00.4]}
4. O-O {[%clk 0:02:57]} 4... d6 {[%clk 0:03:00.7]} 5. c3 {[%clk 0:02:57]} 5...
Bd7 {[%clk 0:03:00.8]} 6. d4 {[%clk 0:02:56.4]} 6... Ng6 {[%clk 0:03:01.2]} 7.
d5 {[%clk 0:02:26.3]} 7... Nb8 {[%clk 0:02:59.9]} 8. c4 {[%clk 0:02:26.2]} 8...
Be7 {[%clk 0:02:58.9]} 9. Nc3 {[%clk 0:02:24.9]} 9... O-O {[%clk 0:02:52.8]} 10.
b4 {[%clk 0:02:08.2]} 10... a5 {[%clk 0:02:49.8]} 11. Rb1 {[%clk 0:01:59.9]}
11... axb4 {[%clk 0:02:48.5]} 12. Rxb4 {[%clk 0:02:00.1]} 12... b6 {[%clk
0:02:49]} 13. Ne1 {[%clk 0:01:52.9]} 13... f5 {[%clk 0:02:41.6]} 14. Nd3 {[%clk
0:01:49.4]} 14... fxe4 {[%clk 0:02:36.7]} 15. Nxe4 {[%clk 0:01:46.5]} 15... Rxa2
{[%clk 0:02:34.4]} 16. Bxd7 {[%clk 0:01:32.1]} 16... Qxd7 {[%clk 0:02:27.3]} 17.
Qb3 {[%clk 0:01:18.1]} 17... Ra8 {[%clk 0:02:08.7]} 18. c5 {[%clk 0:00:54.4]}
18... Na6 {[%clk 0:01:51.2]} 19. c6 {[%clk 0:00:20.4]} 19... Qf5 {[%clk
0:01:43.9]} 20. Ra4 {[%clk 0:00:19.9]} 20... Qf7 {[%clk 0:01:33.6]} 21. f3
{[%clk 0:00:18.4]} 21... Nc5 {[%clk 0:01:26.2]} 22. Ndxc5 {[%clk 0:00:14.9]}
22... dxc5 {[%clk 0:01:24.9]} 23. Rd1 {[%clk 0:00:11.6]} 23... Rxa4 {[%clk
0:01:21.7]} 24. Qxa4 {[%clk 0:00:11.7]} 24... Rd8 {[%clk 0:01:22.2]} 25. Qa2
{[%clk 0:00:08.2]} 25... h6 {[%clk 0:01:19.3]} 26. Be3 {[%clk 0:00:07.7]} 26...
Bf8 {[%clk 0:01:10.9]} 27. Nc3 {[%clk 0:00:07.4]} 27... Ne7 {[%clk 0:01:07.5]}
28. Rd2 {[%clk 0:00:02.5]} 28... Nf5 {[%clk 0:01:00.5]} 29. Kf2 {[%clk
0:00:01.8]} 29... Be7 {[%clk 0:00:40.3]} 30. Ne4 {[%clk 0:00:01.9]} 30... Bh4+
{[%clk 0:00:38.8]} 31. g3 {[%clk 0:00:01.9]} 31... Be7 {[%clk 0:00:39.7]} 32.
Qb3 {[%clk 0:00:01.8]} 32... Nd4 {[%clk 0:00:38.2]} 33. Bxd4 {[%clk 0:00:01.4]}
33... exd4 {[%clk 0:00:39.1]} 0-1

[Event "*** SCC Grand Prix: Titled Tuesday Blitz"]
[Site "Chess.com"]
[Date "2020.10.13"]
[Round "4"]
[White "chito89"]
[Black "FMJoseHerrera"]
[Result "1-0"]
[WhiteElo "2795"]
[BlackElo "2563"]
[TimeControl "180+1"]
[EndTime "10:38:56 PDT"]
[Termination "chito89 won by resignation"]

1. e4 {[%clk 0:02:58.4]} 1... c5 {[%clk 0:02:55.2]} 2. Nf3 {[%clk 0:02:53]} 2...
e6 {[%clk 0:02:54.6]} 3. g3 {[%clk 0:02:47.1]} 3... b6 {[%clk 0:02:54.2]} 4. Bg2
{[%clk 0:02:43.3]} 4... Bb7 {[%clk 0:02:54.3]} 5. Nc3 {[%clk 0:02:41.1]} 5... a6
{[%clk 0:02:54.2]} 6. O-O {[%clk 0:02:40.9]} 6... Qc7 {[%clk 0:02:53.8]} 7. Qe2
{[%clk 0:02:40.8]} 7... d6 {[%clk 0:02:53.4]} 8. d4 {[%clk 0:02:36.8]} 8... cxd4
{[%clk 0:02:54.3]} 9. Nxd4 {[%clk 0:02:37.4]} 9... Nd7 {[%clk 0:02:53.7]} 10.
Rd1 {[%clk 0:02:11.3]} 10... Ngf6 {[%clk 0:02:52.8]} 11. Nd5 {[%clk 0:02:09.6]}
11... exd5 {[%clk 0:01:16.9]} 12. exd5+ {[%clk 0:02:10.5]} 12... Be7 {[%clk
0:01:12.8]} 13. Nf5 {[%clk 0:02:05.1]} 13... Ne5 {[%clk 0:01:12.8]} 14. Nxg7+
{[%clk 0:02:00.9]} 14... Kd8 {[%clk 0:01:10.1]} 15. Nf5 {[%clk 0:01:47.9]} 15...
Bc8 {[%clk 0:01:08.6]} 16. Nxe7 {[%clk 0:01:23.7]} 16... Qxe7 {[%clk 0:01:09.5]}
17. Re1 {[%clk 0:01:24]} 17... Bg4 {[%clk 0:00:57.8]} 18. Qe3 {[%clk 0:01:18.8]}
18... Nfd7 {[%clk 0:00:43.8]} 19. Bd2 {[%clk 0:01:04.8]} 19... Qf6 {[%clk
0:00:38.7]} 20. Bc3 {[%clk 0:00:58]} 20... Re8 {[%clk 0:00:35]} 21. f4 {[%clk
0:00:51.4]} 21... Kc7 {[%clk 0:00:20.2]} 22. fxe5 {[%clk 0:00:49.7]} 22... Nxe5
{[%clk 0:00:21.1]} 23. Rf1 {[%clk 0:00:43.8]} 23... Qg6 {[%clk 0:00:21.2]} 24.
Qf4 {[%clk 0:00:40.2]} 24... Bh5 {[%clk 0:00:12.5]} 25. Rae1 {[%clk 0:00:35.1]}
25... Re7 {[%clk 0:00:12.6]} 26. Bxe5 {[%clk 0:00:33.7]} 26... dxe5 {[%clk
0:00:13.5]} 27. d6+ {[%clk 0:00:27]} 27... Kxd6 {[%clk 0:00:13.1]} 28. Qb4+
{[%clk 0:00:25.8]} 28... Kd7 {[%clk 0:00:12.7]} 29. Bxa8 {[%clk 0:00:25.1]} 1-0

[Event "*** SCC Grand Prix: Titled Tuesday Blitz"]
[Site "Chess.com"]
[Date "2020.10.13"]
[Round "4"]
[White "Alexander_Zubov"]
[Black "aloe_normansen"]
[Result "1-0"]
[WhiteElo "2908"]
[BlackElo "2356"]
[TimeControl "180+1"]
[EndTime "10:38:56 PDT"]
[Termination "Alexander_Zubov won by resignation"]

1. d4 {[%clk 0:03:00.9]} 1... Nf6 {[%clk 0:02:59.8]} 2. Nf3 {[%clk 0:02:59.5]}
2... g6 {[%clk 0:02:59.4]} 3. c4 {[%clk 0:02:59]} 3... Bg7 {[%clk 0:02:58.9]} 4.
Nc3 {[%clk 0:02:58.9]} 4... O-O {[%clk 0:02:59]} 5. e4 {[%clk 0:02:58.5]} 5...
d6 {[%clk 0:02:59.3]} 6. Be2 {[%clk 0:02:58.5]} 6... e5 {[%clk 0:02:53.2]} 7. d5
{[%clk 0:02:57.3]} 7... a5 {[%clk 0:02:52.3]} 8. Be3 {[%clk 0:02:55.3]} 8... Na6
{[%clk 0:02:48.3]} 9. Nd2 {[%clk 0:02:54.7]} 9... h5 {[%clk 0:01:57.3]} 10. h3
{[%clk 0:02:48.9]} 10... Nh7 {[%clk 0:01:53.9]} 11. a3 {[%clk 0:02:42]} 11...
Bd7 {[%clk 0:01:50.2]} 12. Qc2 {[%clk 0:02:31.9]} 12... Nc5 {[%clk 0:01:29.7]}
13. O-O-O {[%clk 0:02:26.6]} 13... a4 {[%clk 0:01:14]} 14. Kb1 {[%clk
0:02:09.6]} 14... f5 {[%clk 0:01:00.6]} 15. exf5 {[%clk 0:02:07]} 15... Bxf5
{[%clk 0:01:01.5]} 16. Nde4 {[%clk 0:02:04.4]} 16... Nxe4 {[%clk 0:00:51.6]} 17.
Nxe4 {[%clk 0:02:03.4]} 17... Nf6 {[%clk 0:00:39.4]} 18. Bd3 {[%clk 0:01:59]}
18... Nxe4 {[%clk 0:00:31.4]} 19. Bxe4 {[%clk 0:01:58.6]} 19... Qh4 {[%clk
0:00:29.5]} 20. Bxf5 {[%clk 0:01:13.5]} 20... Rxf5 {[%clk 0:00:30.4]} 21. g3
{[%clk 0:01:00]} 21... Qf6 {[%clk 0:00:27.7]} 22. g4 {[%clk 0:00:59.3]} 22...
Rf4 {[%clk 0:00:25.1]} 23. Bxf4 {[%clk 0:00:53.9]} 23... exf4 {[%clk 0:00:25.9]}
24. gxh5 {[%clk 0:00:48.1]} 24... gxh5 {[%clk 0:00:22.3]} 25. Rde1 {[%clk
0:00:45.5]} 25... Ra6 {[%clk 0:00:20.9]} 26. Re8+ {[%clk 0:00:41.2]} 26... Kf7
{[%clk 0:00:20.1]} 27. Re6 {[%clk 0:00:40.4]} 27... Qg5 {[%clk 0:00:15.4]} 28.
h4 {[%clk 0:00:35.5]} 28... Qg4 {[%clk 0:00:14.8]} 29. f3 {[%clk 0:00:34.8]}
29... Qg3 {[%clk 0:00:12]} 30. Qf5+ {[%clk 0:00:33.4]} 30... Kg8 {[%clk
0:00:09.8]} 31. Re8+ {[%clk 0:00:33]} 1-0

[Event "*** SCC Grand Prix: Titled Tuesday Blitz"]
[Site "Chess.com"]
[Date "2020.10.13"]
[Round "4"]
[White "youngKID"]
[Black "Parhamov"]
[Result "0-1"]
[WhiteElo "2812"]
[BlackElo "2962"]
[TimeControl "180+1"]
[EndTime "10:38:57 PDT"]
[Termination "Parhamov won by resignation"]

1. e4 {[%clk 0:03:00.9]} 1... c5 {[%clk 0:02:59.5]} 2. Nf3 {[%clk 0:03:00.6]}
2... Nc6 {[%clk 0:03:00.1]} 3. d4 {[%clk 0:02:58.8]} 3... cxd4 {[%clk
0:03:00.2]} 4. Nxd4 {[%clk 0:02:59.7]} 4... e5 {[%clk 0:03:01.1]} 5. Nb5 {[%clk
0:02:58.9]} 5... d6 {[%clk 0:03:01.6]} 6. N1c3 {[%clk 0:02:58]} 6... a6 {[%clk
0:03:02]} 7. Na3 {[%clk 0:02:57.8]} 7... Be6 {[%clk 0:03:02.3]} 8. Nc4 {[%clk
0:02:56.8]} 8... Rb8 {[%clk 0:03:02.5]} 9. Ne3 {[%clk 0:02:56.7]} 9... Nf6
{[%clk 0:03:00.4]} 10. g3 {[%clk 0:02:43.3]} 10... h5 {[%clk 0:02:56.4]} 11. h4
{[%clk 0:02:35.8]} 11... g6 {[%clk 0:02:52.2]} 12. Bh3 {[%clk 0:02:30.6]} 12...
Bxh3 {[%clk 0:02:46.9]} 13. Rxh3 {[%clk 0:02:31.5]} 13... Nd4 {[%clk 0:02:42.8]}
14. Rh1 {[%clk 0:02:19.5]} 14... Rc8 {[%clk 0:02:39.3]} 15. Kf1 {[%clk
0:02:00.1]} 15... Bh6 {[%clk 0:02:27.5]} 16. Qd3 {[%clk 0:01:34.4]} 16... b5
{[%clk 0:02:25.5]} 17. Kg2 {[%clk 0:01:19]} 17... O-O {[%clk 0:02:16.9]} 18.
Ned5 {[%clk 0:01:14.1]} 18... Bxc1 {[%clk 0:02:12.7]} 19. Raxc1 {[%clk
0:01:07.2]} 19... Nxd5 {[%clk 0:02:09.3]} 20. Nxd5 {[%clk 0:01:07.4]} 20... f5
{[%clk 0:02:08.5]} 21. c3 {[%clk 0:01:05.9]} 21... Ne6 {[%clk 0:02:08.1]} 22.
exf5 {[%clk 0:01:04.2]} 22... gxf5 {[%clk 0:02:07.7]} 23. Rcd1 {[%clk
0:01:01.7]} 23... Qe8 {[%clk 0:02:05.2]} 24. Ne3 {[%clk 0:00:48.2]} 24... f4
{[%clk 0:01:42.6]} 25. Nf5 {[%clk 0:00:46.2]} 25... Qc6+ {[%clk 0:01:39.3]} 26.
Kh2 {[%clk 0:00:43.9]} 26... Rc7 {[%clk 0:01:38.5]} 27. gxf4 {[%clk 0:00:29.7]}
27... Kh8 {[%clk 0:01:35.1]} 28. Rhg1 {[%clk 0:00:16.1]} 28... Nxf4 {[%clk
0:01:21.4]} 29. Qxd6 {[%clk 0:00:10.6]} 29... Rxf5 {[%clk 0:01:07]} 30. Qd8+
{[%clk 0:00:10.4]} 30... Kh7 {[%clk 0:01:07]} 31. Rd6 {[%clk 0:00:08.1]} 31...
Qc4 {[%clk 0:01:06.5]} 32. Qe8 {[%clk 0:00:02.7]} 32... Qf7 {[%clk 0:01:04]} 33.
Qd8 {[%clk 0:00:02]} 33... Ne6 {[%clk 0:00:56.6]} 34. Rxe6 {[%clk 0:00:01.8]}
34... Rxf2+ {[%clk 0:00:56.3]} 35. Kh1 {[%clk 0:00:01.7]} 35... Qf3+ {[%clk
0:00:56.3]} 0-1

[Event "*** SCC Grand Prix: Titled Tuesday Blitz"]
[Site "Chess.com"]
[Date "2020.10.13"]
[Round "4"]
[White "Rodalquilar"]
[Black "zurzan"]
[Result "1-0"]
[WhiteElo "2755"]
[BlackElo "1997"]
[TimeControl "180+1"]
[EndTime "10:38:58 PDT"]
[Termination "Rodalquilar won by resignation"]

1. d4 {[%clk 0:01:39.5]} 1... d6 {[%clk 0:02:56.8]} 2. e4 {[%clk 0:01:37.4]}
2... Nf6 {[%clk 0:02:55]} 3. Nc3 {[%clk 0:01:37.8]} 3... g6 {[%clk 0:02:54.8]}
4. Nf3 {[%clk 0:01:38.1]} 4... Bg7 {[%clk 0:02:55]} 5. Be2 {[%clk 0:01:38.6]}
5... O-O {[%clk 0:02:55.3]} 6. O-O {[%clk 0:01:39.1]} 6... c6 {[%clk 0:02:55.7]}
7. Bf4 {[%clk 0:01:35.3]} 7... Qc7 {[%clk 0:02:54.6]} 8. h3 {[%clk 0:01:32.6]}
8... Nh5 {[%clk 0:02:51.4]} 9. Be3 {[%clk 0:01:20.7]} 9... e5 {[%clk 0:02:50.2]}
10. Qd2 {[%clk 0:01:21.2]} 10... exd4 {[%clk 0:02:45.8]} 11. Bxd4 {[%clk
0:01:16.6]} 11... Nf6 {[%clk 0:02:44.2]} 12. Rad1 {[%clk 0:01:14.6]} 12... Be6
{[%clk 0:02:29.6]} 13. Ng5 {[%clk 0:01:08.5]} 13... d5 {[%clk 0:02:20.5]} 14.
exd5 {[%clk 0:01:03.7]} 14... cxd5 {[%clk 0:02:16.4]} 15. Nb5 {[%clk 0:00:57]}
15... Qd7 {[%clk 0:02:09.1]} 16. Qc3 {[%clk 0:00:54.8]} 16... Na6 {[%clk
0:02:08]} 17. Bxf6 {[%clk 0:00:54.3]} 17... Bxf6 {[%clk 0:02:02.7]} 18. Qxf6
{[%clk 0:00:54.3]} 18... Nc5 {[%clk 0:01:41.9]} 19. c4 {[%clk 0:00:48]} 19... a6
{[%clk 0:01:34.4]} 20. cxd5 {[%clk 0:00:46.3]} 20... Bxd5 {[%clk 0:01:30.4]} 21.
Nc3 {[%clk 0:00:46.3]} 21... Qc6 {[%clk 0:01:20.1]} 22. Nxd5 {[%clk 0:00:46]}
22... Qxf6 {[%clk 0:01:18.7]} 23. Nxf6+ {[%clk 0:00:46.4]} 23... Kg7 {[%clk
0:01:19.6]} 24. Nfe4 {[%clk 0:00:44]} 24... Nxe4 {[%clk 0:01:14.9]} 25. Nxe4
{[%clk 0:00:44]} 25... Rfe8 {[%clk 0:01:14.1]} 26. Bf3 {[%clk 0:00:44.1]} 26...
f5 {[%clk 0:01:13.6]} 27. Rd7+ {[%clk 0:00:43.6]} 27... Kh6 {[%clk 0:01:12.4]}
28. Nf6 {[%clk 0:00:44]} 28... Rh8 {[%clk 0:01:10.8]} 29. h4 {[%clk 0:00:43.6]}
29... Raf8 {[%clk 0:01:06.5]} 30. Nd5 {[%clk 0:00:43.5]} 30... b5 {[%clk
0:01:03.7]} 31. Re1 {[%clk 0:00:43.8]} 31... a5 {[%clk 0:00:55.5]} 32. Ree7
{[%clk 0:00:43.4]} 32... b4 {[%clk 0:00:46.4]} 33. Nf4 {[%clk 0:00:43.7]} 33...
a4 {[%clk 0:00:31.3]} 34. Ne6 {[%clk 0:00:43.9]} 34... Re8 {[%clk 0:00:10.7]}
35. Rxe8 {[%clk 0:00:40.5]} 35... Rxe8 {[%clk 0:00:10.7]} 36. Ng5 {[%clk
0:00:41.4]} 36... Rh8 {[%clk 0:00:10]} 37. Nf7+ {[%clk 0:00:41.7]} 1-0

[Event "*** SCC Grand Prix: Titled Tuesday Blitz"]
[Site "Chess.com"]
[Date "2020.10.13"]
[Round "4"]
[White "nrvisakh"]
[Black "BillieKimbah"]
[Result "0-1"]
[WhiteElo "2807"]
[BlackElo "2941"]
[TimeControl "180+1"]
[EndTime "10:39:00 PDT"]
[Termination "BillieKimbah won by resignation"]

1. e4 {[%clk 0:03:00.9]} 1... e5 {[%clk 0:02:59.6]} 2. Nf3 {[%clk 0:03:00.9]}
2... d6 {[%clk 0:03:00.1]} 3. d4 {[%clk 0:02:57.1]} 3... exd4 {[%clk 0:03:00.4]}
4. Nxd4 {[%clk 0:02:58]} 4... Nf6 {[%clk 0:03:00.6]} 5. Nc3 {[%clk 0:02:58.1]}
5... Be7 {[%clk 0:03:01.1]} 6. Be2 {[%clk 0:02:55.3]} 6... O-O {[%clk
0:03:00.8]} 7. O-O {[%clk 0:02:55.8]} 7... Re8 {[%clk 0:03:01.3]} 8. Re1 {[%clk
0:02:56.2]} 8... Bf8 {[%clk 0:03:01.8]} 9. Bf1 {[%clk 0:02:56.3]} 9... c6 {[%clk
0:03:00]} 10. a4 {[%clk 0:02:50.7]} 10... a5 {[%clk 0:02:59.8]} 11. Bg5 {[%clk
0:02:38.8]} 11... Nbd7 {[%clk 0:02:59.4]} 12. h3 {[%clk 0:02:27]} 12... h6
{[%clk 0:02:54.8]} 13. Bh4 {[%clk 0:02:26.7]} 13... Ne5 {[%clk 0:02:42.4]} 14.
Nb3 {[%clk 0:01:55.7]} 14... Bd7 {[%clk 0:02:38.9]} 15. f4 {[%clk 0:01:48.1]}
15... Ng6 {[%clk 0:02:36.6]} 16. Bg3 {[%clk 0:01:48.3]} 16... Qb6+ {[%clk
0:02:28.5]} 17. Kh2 {[%clk 0:01:44.5]} 17... Qb4 {[%clk 0:02:26.4]} 18. e5
{[%clk 0:01:37.5]} 18... Nd5 {[%clk 0:02:15.5]} 19. Nxd5 {[%clk 0:01:31.1]}
19... cxd5 {[%clk 0:02:16.4]} 20. Qf3 {[%clk 0:01:00]} 20... Bxa4 {[%clk
0:01:53.4]} 21. Red1 {[%clk 0:00:41.7]} 21... Bc6 {[%clk 0:01:40.1]} 22. Nd4
{[%clk 0:00:39.1]} 22... dxe5 {[%clk 0:01:35.6]} 23. fxe5 {[%clk 0:00:39.2]}
23... Nxe5 {[%clk 0:01:35.8]} 24. Qf2 {[%clk 0:00:39.3]} 24... Nc4 {[%clk
0:01:27.7]} 25. b3 {[%clk 0:00:34.5]} 25... Ne3 {[%clk 0:01:25.4]} 26. Rd3
{[%clk 0:00:34.5]} 26... Qe7 {[%clk 0:01:12.4]} 27. Re1 {[%clk 0:00:28.9]} 27...
Nxf1+ {[%clk 0:01:09.8]} 28. Rxf1 {[%clk 0:00:26.7]} 28... Qd7 {[%clk
0:01:02.3]} 29. Rf3 {[%clk 0:00:16.1]} 29... f6 {[%clk 0:01:02.5]} 30. Nf5
{[%clk 0:00:16.5]} 30... Re6 {[%clk 0:00:58.2]} 31. Rf4 {[%clk 0:00:15.2]} 31...
Re4 {[%clk 0:00:57.3]} 32. Qf3 {[%clk 0:00:14.1]} 32... Rae8 {[%clk 0:00:48.8]}
33. Qg4 {[%clk 0:00:13.8]} 33... Kh7 {[%clk 0:00:47.8]} 34. Qf3 {[%clk
0:00:07.7]} 34... d4 {[%clk 0:00:45.8]} 35. Qf2 {[%clk 0:00:06.1]} 35... Re2
{[%clk 0:00:44.8]} 0-1